fUSD/lending_fUSD_20260622
["ID","MTS","AMOUNT","RATE_DAILY","PERIOD"]
[425978580,1782061935000,-500.0,0.00030684,2]
[425978583,1782061935000,-500.0,0.00030684,2]
[425978586,1782061935000,-819.78,0.00030684,2]
[425978578,1782061935000,-150.0,0.00030684,120]
[425978581,1782061935000,-598.59,0.00030684,2]
[425978577,1782061935000,-500.0,0.00030684,2]
[425978576,1782061935000,-597.07,0.00030684,2]
[425978603,1782061935000,-500.0,0.00030684,2]
[425978589,1782061935000,-500.0,0.00030684,2]
[425978602,1782061935000,-847.94,0.00030684,2]
[425978607,1782061935000,-535.03,0.00030684,2]
[425978632,1782061935000,-2678.53,0.00030684,2]
[425978635,1782061935000,-355.37999048,0.00030684,2]
[425978634,1782061935000,-508.83,0.00030684,2]
[425978608,1782061935000,-500.0,0.00030684,2]
[425978633,1782061935000,-678.71,0.00030684,2]
[425978630,1782061935000,-500.0,0.00030684,2]
[425978628,1782061935000,-500.0,0.00030684,2]
[425978631,1782061935000,-640.68,0.00030684,2]
[425978629,1782061935000,-792.91,0.00030684,2]
[425978627,1782061935000,-588.39,0.00030684,2]
[425978623,1782061935000,-698.8,0.00030684,2]
[425978625,1782061935000,-500.0,0.00030684,2]
[425978626,1782061935000,-620.22,0.00030684,2]
[425978622,1782061935000,-1244.82,0.00030684,2]
[425978620,1782061935000,-500.0,0.00030684,2]
[425978624,1782061935000,-952.51,0.00030684,2]
[425978618,1782061935000,-500.0,0.00030684,2]
[425978606,1782061935000,-831.45,0.00030684,2]
[425978621,1782061935000,-264.10477275,0.00030684,2]
[425978609,1782061935000,-530.25766936,0.00030684,2]
[425978612,1782061935000,-500.0,0.00030684,2]
[425978610,1782061935000,-534.55,0.00030684,2]
[425978611,1782061935000,-500.0,0.00030684,2]
[425978605,1782061935000,-741.63,0.00030684,2]
[425978613,1782061935000,-663.71,0.00030684,2]
[425978614,1782061935000,-670.78,0.00030684,2]
[425978616,1782061935000,-500.0,0.00030684,2]
[425978617,1782061935000,-1423.29,0.00030684,2]
[425978619,1782061935000,-500.0,0.00030684,2]
[425978615,1782061935000,-567.5,0.00030684,2]
[425978653,1782061936000,-500.0,0.00030684,2]
[425978652,1782061936000,-803.29,0.00030684,2]
[425978651,1782061936000,-500.0,0.00030684,2]
[425978650,1782061936000,-500.0,0.00030684,2]
[425978654,1782061936000,-1092.63,0.00030684,2]
[425978658,1782061936000,-7491.39,0.00030684,2]
[425978659,1782061936000,-500.0,0.00030684,2]
[425978657,1782061936000,-500.0,0.00030684,2]
[425978655,1782061936000,-540.14,0.00030684,2]
[425978649,1782061936000,-594.9,0.00030684,2]
[425978656,1782061936000,-500.0,0.00030684,2]
[425978644,1782061936000,-500.0,0.00030684,2]
[425978664,1782061936000,-500.0,0.00030684,2]
[425978646,1782061936000,-500.0,0.00030684,2]
[425978648,1782061936000,-500.0,0.00030684,2]
[425978645,1782061936000,-436.25266735,0.00030684,2]
[425978643,1782061936000,-500.0,0.00030684,2]
[425978642,1782061936000,-690.91,0.00030684,2]
[425978641,1782061936000,-500.0,0.00030684,2]
[425978639,1782061936000,-519.3,0.00030684,2]
[425978640,1782061936000,-1318.07,0.00030684,2]
[425978638,1782061936000,-893.03,0.00030684,2]
[425978636,1782061936000,-1511.74,0.00030684,2]
[425978637,1782061936000,-500.0,0.00030684,2]
[425978647,1782061936000,-800.23,0.00030684,2]
[425978660,1782061936000,-500.0,0.00030684,2]
[425978676,1782061936000,-500.0,0.00030684,2]
[425978663,1782061936000,-500.0,0.00030684,2]
[425978662,1782061936000,-654.24,0.00030684,2]
[425978685,1782061936000,-500.0,0.00030684,2]
[425978684,1782061936000,-500.0,0.00030684,2]
[425978682,1782061936000,-500.0,0.00030684,2]
[425978687,1782061936000,-572.65,0.00030684,2]
[425978686,1782061936000,-1130.66,0.00030684,2]
[425978683,1782061936000,-500.0,0.00030684,2]
[425978681,1782061936000,-500.0,0.00030684,2]
[425978679,1782061936000,-500.0,0.00030684,2]
[425978677,1782061936000,-1000.0,0.00030684,2]
[425978680,1782061936000,-500.0,0.00030684,2]
[425978678,1782061936000,-1016.84,0.00030684,2]
[425978688,1782061936000,-500.0,0.00030684,2]
[425978674,1782061936000,-1056.03,0.00030684,2]
[425978671,1782061936000,-500.0,0.00030684,2]
[425978672,1782061936000,-1118.18,0.00030684,2]
[425978661,1782061936000,-3987.32,0.00030684,2]
[425978670,1782061936000,-500.0,0.00030684,2]
[425978673,1782061936000,-500.0,0.00030684,2]
[425978666,1782061936000,-500.0,0.00030684,2]
[425978667,1782061936000,-5864.59,0.00030684,2]
[425978669,1782061936000,-500.0,0.00030684,2]
[425978665,1782061936000,-602.92,0.00030684,2]
[425978668,1782061936000,-5224.19,0.00030684,2]
[425978675,1782061936000,-500.0,0.00030684,2]
[425978725,1782061937000,-500.0,0.00030684,2]
[425978721,1782061937000,-4107.48,0.00030684,2]
[425978724,1782061937000,-913.85,0.00030684,2]
[425978717,1782061937000,-547.74,0.00030684,2]
[425978723,1782061937000,-500.0,0.00030684,2]
[425978722,1782061937000,-839.88,0.00030684,2]
[425978720,1782061937000,-4867.06,0.00030684,2]
[425978730,1782061937000,-1094.84,0.00030684,2]
[425978718,1782061937000,-9055.22,0.00030684,2]
[425978719,1782061937000,-500.0,0.00030684,2]
[425978732,1782061937000,-8104.14,0.00030684,2]
[425978728,1782061937000,-4501.1,0.00030684,2]
[425978736,1782061937000,-946.16,0.00030684,2]
[425978726,1782061937000,-9631.81,0.00030684,2]
[425978735,1782061937000,-3370.08,0.00030684,2]
[425978733,1782061937000,-3218.44,0.00030684,2]
[425978729,1782061937000,-1087.92,0.00030684,2]
[425978731,1782061937000,-500.0,0.00030684,2]
[425978738,1782061937000,-544.71,0.00030684,2]
[425978737,1782061937000,-8949.23,0.00030684,2]
[425978746,1782061937000,-500.0,0.00030684,2]
[425978716,1782061937000,-500.0,0.00030684,2]
[425978744,1782061937000,-6489.37,0.00030684,2]
[425978734,1782061937000,-9092.8,0.00030684,2]
[425978715,1782061937000,-500.0,0.00030684,2]
[425978700,1782061937000,-541.15,0.00030684,2]
[425978706,1782061937000,-6410.69,0.00030684,2]
[425978741,1782061937000,-826.36,0.00030684,2]
[425978689,1782061937000,-6753.8,0.00030684,2]
[425978690,1782061937000,-612.55708023,0.00030684,2]
[425978702,1782061937000,-500.0,0.00030684,2]
[425978692,1782061937000,-500.0,0.00030684,2]
[425978691,1782061937000,-3926.18,0.00030684,2]
[425978695,1782061937000,-434.04621653,0.00030684,2]
[425978693,1782061937000,-2712.86,0.00030684,2]
[425978694,1782061937000,-873.86,0.00030684,2]
[425978696,1782061937000,-4889.99,0.00030684,2]
[425978698,1782061937000,-741.05,0.00030684,2]
[425978714,1782061937000,-1547.68,0.00030684,2]
[425978697,1782061937000,-5923.33,0.00030684,2]
[425978699,1782061937000,-732.43,0.00030684,2]
[425978703,1782061937000,-500.0,0.00030684,2]
[425978707,1782061937000,-605.17,0.00030684,2]
[425978709,1782061937000,-500.0,0.00030684,2]
[425978704,1782061937000,-500.0,0.00030684,2]
[425978710,1782061937000,-4173.31,0.00030684,2]
[425978708,1782061937000,-12052.2,0.00030684,2]
[425978713,1782061937000,-822.03,0.00030684,2]
[425978705,1782061937000,-4756.56,0.00030684,2]
[425978712,1782061937000,-8253.7,0.00030684,2]
[425978711,1782061937000,-2146.6,0.00030684,2]
[425978701,1782061937000,-1048.26,0.00030684,2]
[425978740,1782061937000,-6582.69,0.00030684,2]
[425978727,1782061937000,-500.0,0.00030684,2]
[425978739,1782061937000,-500.0,0.00030684,2]
[425978771,1782061937000,-500.0,0.00030684,2]
[425978772,1782061937000,-500.0,0.00030684,2]
[425978775,1782061937000,-785.35,0.00030684,2]
[425978779,1782061937000,-670.57,0.00030684,2]
[425978778,1782061937000,-500.0,0.00030684,2]
[425978776,1782061937000,-853.42,0.00030684,2]
[425978777,1782061937000,-500.0,0.00030684,2]
[425978774,1782061937000,-500.0,0.00030684,2]
[425978781,1782061937000,-1483.1,0.00030684,2]
[425978783,1782061937000,-4451.14,0.00030684,2]
[425978787,1782061937000,-1823.11,0.00030684,2]
[425978773,1782061937000,-207.48316156,0.00030684,2]
[425978788,1782061937000,-616.3,0.00030684,2]
[425978784,1782061937000,-501.49,0.00030684,2]
[425978790,1782061937000,-8230.87,0.00030684,2]
[425978789,1782061937000,-4815.29,0.00030684,2]
[425978785,1782061937000,-500.0,0.00030684,2]
[425978791,1782061937000,-500.0,0.00030684,2]
[425978792,1782061937000,-500.0,0.00030684,2]
[425978793,1782061937000,-438.56900604,0.00030684,2]
[425978797,1782061937000,-529.37,0.00030684,2]
[425978794,1782061937000,-1825.32,0.00030684,2]
[425978795,1782061937000,-500.0,0.00030684,2]
[425978742,1782061937000,-4428.27,0.00030684,2]
[425978786,1782061937000,-2000.0,0.00030684,2]
[425978769,1782061937000,-538.42,0.00030684,2]
[425978782,1782061937000,-709.73,0.00030684,2]
[425978770,1782061937000,-629.28,0.00030684,2]
[425978743,1782061937000,-3434.42,0.00030684,2]
[425978780,1782061937000,-2013.27,0.00030684,2]
[425978745,1782061937000,-500.0,0.00030684,2]
[425978748,1782061937000,-8108.8,0.00030684,2]
[425978747,1782061937000,-6468.05,0.00030684,2]
[425978753,1782061937000,-514.73,0.00030684,2]
[425978749,1782061937000,-763.6,0.00030684,2]
[425978752,1782061937000,-500.0,0.00030684,2]
[425978751,1782061937000,-500.0,0.00030684,2]
[425978757,1782061937000,-981.05,0.00030684,2]
[425978756,1782061937000,-10410.98,0.00030684,2]
[425978755,1782061937000,-8432.29,0.00030684,2]
[425978754,1782061937000,-3418.67,0.00030684,2]
[425978750,1782061937000,-2478.59,0.00030684,2]
[425978764,1782061937000,-6462.79,0.00030684,2]
[425978765,1782061937000,-393.04516415,0.00030684,2]
[425978796,1782061937000,-3531.97,0.00030684,2]
[425978766,1782061937000,-4131.31,0.00030684,2]
[425978768,1782061937000,-6683.71,0.00030684,2]
[425978767,1782061937000,-3874.09,0.00030684,2]
[425978763,1782061937000,-500.0,0.00030684,2]
[425978762,1782061937000,-15060.49,0.00030684,2]
[425978761,1782061937000,-650.16,0.00030684,2]
[425978758,1782061937000,-10460.79,0.00030684,2]
[425978759,1782061937000,-742.97,0.00030684,2]
[425978760,1782061937000,-631.38,0.00030684,2]
[425978832,1782061938000,-749.0,0.00030715,2]
[425978844,1782061938000,-10740.45,0.00030749,10]
[425978834,1782061938000,-1109.69851468,0.00030715,2]
[425978835,1782061938000,-749.0,0.00030715,2]
[425978830,1782061938000,-200.0,0.000307,11]
[425978824,1782061938000,-251.0,0.0003069,2]
[425978829,1782061938000,-4127.22667548,0.00030692,30]
[425978831,1782061938000,-749.0,0.00030715,2]
[425978828,1782061938000,-251.0,0.0003069,2]
[425978843,1782061938000,-11686.78,0.00030749,10]
[425978833,1782061938000,-749.0,0.00030715,2]
[425978838,1782061938000,-903.13475447,0.00030715,2]
[425978851,1782061938000,-12500.0,0.0003075,2]
[425978839,1782061938000,-4272.0,0.00030727,10]
[425978842,1782061938000,-150.0,0.00030749,2]
[425978836,1782061938000,-749.0,0.00030715,2]
[425978840,1782061938000,-200.0,0.00030742,2]
[425978841,1782061938000,-200.0,0.00030742,2]
[425978846,1782061938000,-25000.0,0.0003075,2]
[425978848,1782061938000,-5134.55,0.0003075,2]
[425978847,1782061938000,-2500.0,0.0003075,2]
[425978845,1782061938000,-22500.0,0.0003075,2]
[425978850,1782061938000,-5946.29,0.0003075,2]
[425978826,1782061938000,-251.0,0.0003069,2]
[425978837,1782061938000,-749.0,0.00030715,2]
[425978825,1782061938000,-251.0,0.0003069,2]
[425978799,1782061938000,-4605.85,0.00030684,2]
[425978823,1782061938000,-251.0,0.0003069,2]
[425978849,1782061938000,-2500.0,0.0003075,2]
[425978798,1782061938000,-8318.01,0.00030684,2]
[425978800,1782061938000,-546.99,0.00030684,2]
[425978801,1782061938000,-2744.45,0.00030684,2]
[425978803,1782061938000,-528.99598586,0.00030684,2]
[425978806,1782061938000,-3268.54,0.00030684,2]
[425978802,1782061938000,-6111.21,0.00030684,2]
[425978805,1782061938000,-500.0,0.00030684,2]
[425978804,1782061938000,-500.0,0.00030684,2]
[425978807,1782061938000,-500.0,0.00030684,2]
[425978809,1782061938000,-6629.64,0.00030684,2]
[425978811,1782061938000,-781.73,0.00030684,2]
[425978808,1782061938000,-543.15,0.00030684,2]
[425978810,1782061938000,-1025.57,0.00030684,2]
[425978812,1782061938000,-500.0,0.00030684,2]
[425978813,1782061938000,-4853.13,0.00030684,2]
[425978814,1782061938000,-500.0,0.00030684,2]
[425978815,1782061938000,-500.0,0.00030684,2]
[425978816,1782061938000,-366.75286175,0.00030685,2]
[425978820,1782061938000,-500.0,0.00030687,2]
[425978817,1782061938000,-501.82455083,0.00030685,2]
[425978819,1782061938000,-500.0,0.00030687,2]
[425978821,1782061938000,-251.0,0.0003069,2]
[425978818,1782061938000,-1334.72,0.00030685,30]
[425978822,1782061938000,-251.0,0.0003069,2]
[425978827,1782061938000,-251.0,0.0003069,2]
[425978853,1782061938000,-400.0,0.0003077,2]
[425978852,1782061938000,-381.21369451,0.00030759,7]
[425978855,1782061938000,-723891.36880403,0.000308,12]
[425978882,1782061938000,-22500.0,0.00030875,2]
[425978886,1782061938000,-1850.65,0.000309,7]
[425978884,1782061938000,-200.0,0.00030875,2]
[425978881,1782061938000,-150.0,0.00030875,2]
[425978890,1782061938000,-6464.69276001,0.00030925,7]
[425978889,1782061938000,-379.0,0.0003091,2]
[425978892,1782061938000,-2296.2406,0.00030933,2]
[425978902,1782061938000,-500.0,0.00030958,2]
[425978903,1782061938000,-500.0,0.00030958,2]
[425978891,1782061938000,-255.95071176,0.00030925,4]
[425978896,1782061938000,-500.0,0.00030958,2]
[425978898,1782061938000,-500.0,0.00030958,2]
[425978895,1782061938000,-500.0,0.00030958,2]
[425978894,1782061938000,-550.94108615,0.00030958,2]
[425978893,1782061938000,-150.0,0.00030943,120]
[425978901,1782061938000,-2687.78,0.00030958,2]
[425978900,1782061938000,-579.02,0.00030958,2]
[425978899,1782061938000,-500.0,0.00030958,2]
[425978904,1782061938000,-1000.0,0.00030958,7]
[425978906,1782061938000,-536.66,0.00030958,2]
[425978907,1782061938000,-500.0,0.00030958,2]
[425978905,1782061938000,-500.0,0.00030958,2]
[425978908,1782061938000,-631.9,0.00030958,2]
[425978909,1782061938000,-508.36,0.00030958,2]
[425978854,1782061938000,-700.0,0.0003077,2]
[425978885,1782061938000,-116058.57,0.000309,2]
[425978888,1782061938000,-531.0,0.000309,11]
[425978897,1782061938000,-576.16,0.00030958,2]
[425978883,1782061938000,-200.0,0.00030875,2]
[425978857,1782061938000,-561.51,0.000308,2]
[425978887,1782061938000,-532.7,0.000309,120]
[425978863,1782061938000,-7000.0,0.00030822,120]
[425978859,1782061938000,-33905.07,0.000308,2]
[425978866,1782061938000,-155.0,0.00030839,30]
[425978858,1782061938000,-250.0,0.000308,30]
[425978864,1782061938000,-161.0,0.00030839,30]
[425978856,1782061938000,-311.0,0.000308,2]
[425978862,1782061938000,-150.0,0.00030821,120]
[425978865,1782061938000,-174.0,0.00030839,30]
[425978860,1782061938000,-5825.17184898,0.00030804,2]
[425978868,1782061938000,-1642.90321031,0.0003084,2]
[425978870,1782061938000,-479.0,0.00030848,30]
[425978861,1782061938000,-152.0,0.00030813,6]
[425978869,1782061938000,-405.0,0.00030848,30]
[425978880,1782061938000,-150.0,0.00030875,2]
[425978873,1782061938000,-528.0,0.00030848,30]
[425978877,1782061938000,-159.0,0.00030851,30]
[425978876,1782061938000,-184.0,0.00030851,30]
[425978872,1782061938000,-154.0,0.00030848,30]
[425978875,1782061938000,-648.0,0.00030848,30]
[425978871,1782061938000,-169.0,0.00030848,30]
[425978867,1782061938000,-207.0,0.0003084,30]
[425978878,1782061938000,-151.5457662,0.00030875,2]
[425978879,1782061938000,-150.0,0.00030875,2]
[425978874,1782061938000,-157.0,0.00030848,30]
[425978946,1782061939000,-540.54,0.00030958,2]
[425978944,1782061939000,-527.94,0.00030958,2]
[425978947,1782061939000,-610.79,0.00030958,2]
[425978948,1782061939000,-500.0,0.00030958,2]
[425978949,1782061939000,-902.56,0.00030958,2]
[425978941,1782061939000,-555.93,0.00030958,2]
[425978945,1782061939000,-526.65,0.00030958,2]
[425978951,1782061939000,-529.62,0.00030958,2]
[425978950,1782061939000,-496.78096507,0.00030958,2]
[425978939,1782061939000,-500.0,0.00030958,2]
[425978952,1782061939000,-500.0,0.00030958,2]
[425978943,1782061939000,-153.99734461,0.00030958,2]
[425978954,1782061939000,-591.28,0.00030958,2]
[425978967,1782061939000,-819.78,0.00030958,2]
[425978955,1782061939000,-500.0,0.00030958,2]
[425978957,1782061939000,-500.0,0.00030958,2]
[425978960,1782061939000,-150.0,0.00030958,120]
[425978958,1782061939000,-597.07,0.00030958,2]
[425978959,1782061939000,-500.0,0.00030958,2]
[425978963,1782061939000,-500.0,0.00030958,2]
[425978962,1782061939000,-598.59,0.00030958,2]
[425978964,1782061939000,-500.0,0.00030958,2]
[425978956,1782061939000,-560.08,0.00030958,2]
[425978961,1782061939000,-500.0,0.00030958,2]
[425978965,1782061939000,-972.04,0.00030958,2]
[425978977,1782061939000,-500.0,0.00030958,2]
[425978942,1782061939000,-500.0,0.00030958,2]
[425978953,1782061939000,-500.0,0.00030958,2]
[425978940,1782061939000,-597.73,0.00030958,2]
[425978911,1782061939000,-500.0,0.00030958,2]
[425978937,1782061939000,-500.0,0.00030958,2]
[425978978,1782061939000,-500.0,0.00030958,2]
[425978910,1782061939000,-401.82283535,0.00030958,2]
[425978912,1782061939000,-500.0,0.00030958,2]
[425978913,1782061939000,-1880.63,0.00030958,2]
[425978914,1782061939000,-500.0,0.00030958,2]
[425978916,1782061939000,-645.4,0.00030958,2]
[425978919,1782061939000,-1512.27,0.00030958,2]
[425978917,1782061939000,-1160.03,0.00030958,2]
[425978915,1782061939000,-1266.12,0.00030958,2]
[425978918,1782061939000,-1217.07,0.00030958,2]
[425978924,1782061939000,-643.15,0.00030958,2]
[425978922,1782061939000,-842.29,0.00030958,2]
[425978921,1782061939000,-500.0,0.00030958,2]
[425978920,1782061939000,-500.0,0.00030958,2]
[425978925,1782061939000,-975.39,0.00030958,2]
[425978923,1782061939000,-544.8,0.00030958,2]
[425978926,1782061939000,-500.0,0.00030958,2]
[425978928,1782061939000,-500.0,0.00030958,2]
[425978930,1782061939000,-923.93,0.00030958,2]
[425978929,1782061939000,-500.0,0.00030958,2]
[425978931,1782061939000,-500.0,0.00030958,2]
[425978932,1782061939000,-1369.32,0.00030958,2]
[425978933,1782061939000,-500.0,0.00030958,2]
[425978927,1782061939000,-651.64,0.00030958,2]
[425978936,1782061939000,-244.98597376,0.00030958,2]
[425978935,1782061939000,-553.48,0.00030958,2]
[425978938,1782061939000,-1267.5,0.00030958,2]
[425978934,1782061939000,-500.0,0.00030958,2]
[425978966,1782061939000,-562.86,0.00030958,2]
[425979012,1782061939000,-508.83,0.00030958,2]
[425978974,1782061939000,-500.0,0.00030958,2]
[425979005,1782061939000,-588.39,0.00030958,2]
[425979006,1782061939000,-500.0,0.00030958,2]
[425979007,1782061939000,-792.91,0.00030958,2]
[425979008,1782061939000,-500.0,0.00030958,2]
[425979009,1782061939000,-640.68,0.00030958,2]
[425979031,1782061939000,-540.14,0.00030958,2]
[425979004,1782061939000,-620.22,0.00030958,2]
[425979013,1782061939000,-1511.74,0.00030958,2]
[425979014,1782061939000,-423.97810242,0.00030958,2]
[425979010,1782061939000,-2678.53,0.00030958,2]
[425979011,1782061939000,-678.71,0.00030958,2]
[425979016,1782061939000,-519.3,0.00030958,2]
[425979026,1782061939000,-500.0,0.00030958,2]
[425979015,1782061939000,-893.03,0.00030958,2]
[425979017,1782061939000,-1318.07,0.00030958,2]
[425979018,1782061939000,-500.0,0.00030958,2]
[425979023,1782061939000,-500.0,0.00030958,2]
[425979022,1782061939000,-500.0,0.00030958,2]
[425979021,1782061939000,-500.0,0.00030958,2]
[425979019,1782061939000,-690.91,0.00030958,2]
[425979025,1782061939000,-594.9,0.00030958,2]
[425979020,1782061939000,-500.0,0.00030958,2]
[425979024,1782061939000,-800.23,0.00030958,2]
[425979028,1782061939000,-803.29,0.00030958,2]
[425979027,1782061939000,-281.95445592,0.00030958,2]
[425979030,1782061939000,-1092.63,0.00030958,2]
[425978971,1782061939000,-3422.69,0.00030958,2]
[425979003,1782061939000,-500.0,0.00030958,2]
[425979000,1782061939000,-1244.82,0.00030958,2]
[425979029,1782061939000,-500.0,0.00030958,2]
[425978997,1782061939000,-500.0,0.00030958,2]
[425979002,1782061939000,-952.51,0.00030958,2]
[425978973,1782061939000,-500.0,0.00030958,2]
[425978972,1782061939000,-766.03,0.00030958,2]
[425978968,1782061939000,-506.54,0.00030958,2]
[425978975,1782061939000,-500.0,0.00030958,2]
[425978976,1782061939000,-549.42,0.00030958,2]
[425978970,1782061939000,-500.0,0.00030958,2]
[425978981,1782061939000,-500.0,0.00030958,2]
[425978979,1782061939000,-500.0,0.00030958,2]
[425978984,1782061939000,-500.0,0.00030958,2]
[425978983,1782061939000,-500.0,0.00030958,2]
[425978985,1782061939000,-741.63,0.00030958,2]
[425978982,1782061939000,-847.94,0.00030958,2]
[425978980,1782061939000,-500.0,0.00030958,2]
[425978969,1782061939000,-534.07,0.00030958,2]
[425978990,1782061939000,-500.0,0.00030958,2]
[425978989,1782061939000,-534.55,0.00030958,2]
[425978999,1782061939000,-500.0,0.00030958,2]
[425978998,1782061939000,-500.0,0.00030958,2]
[425978992,1782061939000,-663.71,0.00030958,2]
[425978996,1782061939000,-1423.29,0.00030958,2]
[425978994,1782061939000,-567.5,0.00030958,2]
[425979001,1782061939000,-698.8,0.00030958,2]
[425978993,1782061939000,-670.78,0.00030958,2]
[425978986,1782061939000,-831.45,0.00030958,2]
[425978988,1782061939000,-500.0,0.00030958,2]
[425978991,1782061939000,-500.0,0.00030958,2]
[425978987,1782061939000,-535.03,0.00030958,2]
[425978995,1782061939000,-500.0,0.00030958,2]
[425979070,1782061940000,-4889.99,0.00030958,2]
[425979067,1782061940000,-474.87023824,0.00030958,2]
[425979068,1782061940000,-2712.86,0.00030958,2]
[425979071,1782061940000,-5923.33,0.00030958,2]
[425979061,1782061940000,-500.0,0.00030958,2]
[425979066,1782061940000,-3926.18,0.00030958,2]
[425979065,1782061940000,-6753.8,0.00030958,2]
[425979063,1782061940000,-572.65,0.00030958,2]
[425979073,1782061940000,-732.43,0.00030958,2]
[425979072,1782061940000,-741.05,0.00030958,2]
[425979069,1782061940000,-873.86,0.00030958,2]
[425979064,1782061940000,-500.0,0.00030958,2]
[425979078,1782061940000,-500.0,0.00030958,2]
[425979075,1782061940000,-1048.26,0.00030958,2]
[425979077,1782061940000,-500.0,0.00030958,2]
[425979082,1782061940000,-12052.2,0.00030958,2]
[425979074,1782061940000,-541.15,0.00030958,2]
[425979081,1782061940000,-605.17,0.00030958,2]
[425979080,1782061940000,-6410.69,0.00030958,2]
[425979079,1782061940000,-4756.56,0.00030958,2]
[425979083,1782061940000,-500.0,0.00030958,2]
[425979087,1782061940000,-822.03,0.00030958,2]
[425979084,1782061940000,-4173.31,0.00030958,2]
[425979062,1782061940000,-1130.66,0.00030958,2]
[425979088,1782061940000,-1547.68,0.00030958,2]
[425979076,1782061940000,-571.56049733,0.00030958,2]
[425979056,1782061940000,-500.0,0.00030958,2]
[425979047,1782061940000,-500.0,0.00030958,2]
[425979055,1782061940000,-500.0,0.00030958,2]
[425979085,1782061940000,-2146.6,0.00030958,2]
[425979038,1782061940000,-654.24,0.00030958,2]
[425979033,1782061940000,-500.0,0.00030958,2]
[425979034,1782061940000,-7491.39,0.00030958,2]
[425979035,1782061940000,-500.0,0.00030958,2]
[425979032,1782061940000,-500.0,0.00030958,2]
[425979037,1782061940000,-3987.32,0.00030958,2]
[425979040,1782061940000,-500.0,0.00030958,2]
[425979049,1782061940000,-500.0,0.00030958,2]
[425979039,1782061940000,-500.0,0.00030958,2]
[425979046,1782061940000,-500.0,0.00030958,2]
[425979043,1782061940000,-5864.59,0.00030958,2]
[425979045,1782061940000,-324.66335066,0.00030958,2]
[425979044,1782061940000,-5224.19,0.00030958,2]
[425979041,1782061940000,-602.92,0.00030958,2]
[425979042,1782061940000,-500.0,0.00030958,2]
[425979048,1782061940000,-1118.18,0.00030958,2]
[425979050,1782061940000,-1056.03,0.00030958,2]
[425979052,1782061940000,-500.0,0.00030958,2]
[425979051,1782061940000,-490.34297878,0.00030958,2]
[425979053,1782061940000,-1000.0,0.00030958,2]
[425979057,1782061940000,-345.35999764,0.00030958,2]
[425979054,1782061940000,-1016.84,0.00030958,2]
[425979058,1782061940000,-500.0,0.00030958,2]
[425979060,1782061940000,-500.0,0.00030958,2]
[425979059,1782061940000,-246.09052878,0.00030958,2]
[425979093,1782061940000,-500.0,0.00030958,2]
[425979036,1782061940000,-500.0,0.00030958,2]
[425979090,1782061940000,-500.0,0.00030958,2]
[425979119,1782061940000,-500.0,0.00030958,2]
[425979122,1782061940000,-8108.8,0.00030958,2]
[425979127,1782061940000,-514.73,0.00030958,2]
[425979123,1782061940000,-763.6,0.00030958,2]
[425979125,1782061940000,-500.0,0.00030958,2]